Cogmind - Beta 16 @@@ ROGUE MODE // 2025.12.09 @ 15:05:00 Player: H3-MLN Result: Destroyed by Piercing Trap Performance ------------- Evolutions (0) 0 Regions Visited (2) 400 Robots Destroyed (19) 95 Value Destroyed (630) 630 Prototype IDs (0) 0 Alien Tech Used (0) 0 Bonus (0) 0 TOTAL SCORE: 1125 Bonus ------- None Cogmind --------- Core Integrity 0/250 Matter 300/300 Energy 199/200 System Corruption 0% Temperature Cool (0) Movement Rolling (130) Ox2 Location -10/Subcaves Parts ------- > --- POWER (1) -------- Subdweller Power Source > --- PROPULSION (2) --- Light Treads Subdweller Monowheel > --- UTILITY (2) ------ Light Humpback > --- WEAPON (2) ------- Subdweller Beam Cannon > --- INVENTORY (25) --- Subdweller Power Source Subdweller Power Source Light Treads Wheel Large Storage Unit Improved Terrain Scanner Small Laser Subdweller Laser Subdweller Laser Battle Rifle Battle Rifle Subdweller Machine Gun Subdweller Shrapnel Launcher Subdweller Shrapnel Launcher Mining Laser Flamer Piercing Trap Peak State ------------ > --- POWER ------------ Subdweller Power Source > --- PROPULSION ------- Light Treads Subdweller Monowheel > --- UTILITY ---------- Large Storage Unit Makeshift Light Armor Plating > --- WEAPON ----------- Subdweller Laser Battle Cannon > --- INVENTORY -------- Light Treads Wheel Compact Wheel Small Storage Unit Improved Terrain Scanner Scrap Shield Small Laser Battle Rifle Battle Rifle Subdweller Machine Gun Subdweller Shrapnel Launcher Mining Laser Flamer Piercing Trap [Rating: 16] Favorites ----------- Power Subdweller Power Source Engine Subdweller Power Source Propulsion Light Treads Treads Light Treads Wheel Subdweller Monowheel Utility Large Storage Unit Device Improved Terrain Scanner Storage Large Storage Unit Protection Makeshift Light Armor Plating Weapon Subdweller Machine Gun Energy Gun Subdweller Laser Energy Cannon Subdweller Beam Cannon Ballistic Gun Subdweller Machine Gun Ballistic Cannon Battle Cannon Special Weapon Mining Laser Build | -11 -10 -10 ------- Run | Yrd Mat Sub Slots Evolved . | . . . Power . | . . . Propulsion . | . . . Utility . | . . . Weapon . | . . . Parts Attached 27 | 7 1 19 Power 3 | 1 . 2 Engine 3 | 1 . 2 Core . | . . . Reactor . | . . . Propulsion 7 | 2 . 5 Treads 2 | 1 . 1 Leg . | . . . Wheel 5 | 1 . 4 Hover . | . . . Flight . | . . . Utility 6 | 2 1 3 Device 1 | 1 . . Storage 3 | 1 1 1 Processor . | . . . Hackware . | . . . Protection 2 | . . 2 Artifact . | . . . Weapon 11 | 2 . 9 Energy Gun 4 | 2 . 2 Energy Cannon 1 | . . 1 Ballistic Gun 4 | . . 4 Ballistic Cannon 1 | . . 1 Launcher . | . . . Special Weapon 1 | . . 1 Impact Weapon . | . . . Slashing Weapon . | . . . Piercing Weapon . | . . . Special Melee Weapon . | . . . Unidentified Prototypes . | . . . Parts Lost 7 | . . 7 Power 1 | . . 1 Propulsion 1 | . . 1 Utility 1 | . . 1 Weapon 4 | . . 4 Highest Loss Streak 4 | . . 4 To Critical Strikes . | . . . Average Backups 10 | 2 6 10 Power . | . 1 . Propulsion 2 | 1 3 2 Utility 1 | . . 2 Weapon 5 | . 2 6 Tool/Special . | . . . Unused Backups 11 | . . 11 Power 2 | . . 2 Propulsion 2 | . . 2 Utility . | . . . Weapon 7 | . . 7 Tool/Special . | . . . Average Slot Usage (%) 93 | . 100 92 Engine 14 | . 14 14 Treads 14 | . 14 14 Wheel 12 | . 14 12 Device 3 | . 14 3 Storage 10 | . 14 10 Protection 8 | . . 8 Energy Gun 7 | . 28 6 Energy Cannon 7 | . . 7 Ballistic Gun 10 | . . 10 Ballistic Cannon 2 | . . 2 Peak Build Rating 16 | 9 9 16 Average Rating 13 | 5 9 13 On Entrance 6 | . 9 9 Avg Prop Armor Cover (%) 10 | 13 13 9 Naked Turns . | . . . Heaviest Build 57 | 14 29 57 Greatest Support 20 | 16 16 20 Greatest Overweight (x) 4 | 4 1 2 Average Overweight (x) 1 | . . 1 Largest Inventory Capacity 25 | 8 15 25 Average Capacity 13 | 7 8 14 Most Carried 17 | 6 7 17 Average Carried 11 | 2 6 12 Final Capacity 25 | 8 15 25 Final Carried 17 | 6 7 17 Class Distribution -------------------- 53% | Mutant 19% | Subdweller-Mutant 16% | Scavenger-Mutant 10% | Derelict-Mutant Dominant Class ---------------- Mutant | -10/Materials Mutant | -10/Subcaves Resources | -11 -10 -10 ----------- Run | Yrd Mat Sub Matter Collected 652 | 239 31 382 Remotely . | . . . Salvage Created 670 | 42 117 511 Parts 45 | 7 10 28 Haulers Intercepted . | . . . Recyclers Shooed . | . . . Parts Field Recycled . | . . . Retrieved Matter . | . . . Parts Self-Destructed 10 | . . 10 Prevented . | . . . Parts Restored . | . . . Kills | -11 -10 -10 ------- Run | Yrd Mat Sub Combat Hostiles Destroyed 15 | . 2 13 Guns 12 | . 2 10 Cannons 3 | . . 3 Classes Destroyed 5 | 1 2 2 Tunneler 3 | 2 1 . Watcher 1 | . 1 . Grunt 2 | . 2 . Sentry 1 | . . 1 Subdweller 12 | . . 12 Best Kill Streak 2 | 2 2 2 Combat Bots Only 2 | . 2 2 Max Kills in Single Turn 1 | 1 1 1 Gunslinging . | . . . Exploded . | . . . Melee . | . . . Uniques/NPCs Destroyed . | . . . Combat | -11 -10 -10 -------- Run | Yrd Mat Sub Hostile Shots Fired 87 | . 4 83 Missed 25 | . 1 24 Hits 62 | . 3 59 Projectile 62 | . 3 59 Critical Strikes 3 | . . 3 Damage Taken 1422 | . 34 1388 Core 256 | . . 256 Absorbed by Shields . | . . . Core Remaining (%) 100 | 100 . . Volleys Fired 103 | 2 8 93 Largest 2 | 2 2 2 Hottest 140 | 80 80 140 Shots Fired 178 | 4 16 158 Gun 123 | 4 16 103 Cannon 52 | . . 52 Launcher . | . . . Special 3 | . . 3 Kinetic 69 | . . 69 Thermal 91 | 2 8 81 Explosive . | . . . Electromagnetic 18 | 2 8 8 Robot Hit Streak 21 | 1 5 21 Robot Miss Streak 2 | 1 1 2 Penetration Max . | . . . Secondary Targets . | . . . Shots Hit Robots 120 | 2 10 108 Core Hits 36 | 2 5 29 Critical Kills 1 | . . 1 Critical Parts Destroyed 1 | . . 1 Critical Strikes 6 | . . 6 Destroy 3 | . . 3 Blast 2 | . . 2 Corrupt 1 | . . 1 Melee Attacks . | . . . Impact . | . . . Slashing . | . . . Piercing . | . . . Sneak Attacks . | . . . Combat Hostiles . | . . . Follow-up Attacks . | . . . Damage Inflicted 2369 | 23 153 2193 Guns 1379 | 23 153 1203 Cannons 942 | . . 942 Explosions . | . . . Melee . | . . . Ramming . | . . . Kinetic 836 | . . 836 Thermal 1325 | 10 34 1281 Explosive . | . . . Electromagnetic 208 | 13 119 76 Impact . | . . . Slashing . | . . . Piercing . | . . . Highest Corruption . | . . . Average Corruption . | . . . Corruption Purged . | . . . Corruption Blocked . | . . . Overload Shots . | . . . Overflow Damage . | . . . Projectiles . | . . . Explosions . | . . . Melee . | . . . Knockbacks 3 | . . 3 Impact . | . . . Kinetic 3 | . . 3 Secondary . | . . . Self-Inflicted Damage . | . . . Shots . | . . . Rammed . | . . . Targets Rammed . | . . . Kicked . | . . . Crushed . | . . . Highest Temperature 280 | 18 90 280 Average Temperature 74 | 12 36 109 Received Heat Transfer 547 | . 18 529 Effects 1 | . . 1 Energy Bleed 1 | . . 1 Siege Activations . | . . . Martial Activations . | . . . Shielding Activations . | . . . Robots Disrupted . | . . . Combat Hostiles . | . . . Robots Corrupted . | . . . Combat Hostiles . | . . . Parts Fried . | . . . Impact Corruptions . | . . . Robots Melted . | . . . Combat Hostiles . | . . . Parts Melted 2 | . . 2 Heat Transferred 1925 | 25 75 1825 Parts Sabotaged . | . . . Parts Stolen . | . . . Parts Stripped . | . . . Power Chain Reactions . | . . . Alert | -11 -10 -10 ------- Run | Yrd Mat Sub Maximum Alert Level . | . . . Low Security (%) 100 | 100 100 . Level 1 . | . . . Level 2 . | . . . Level 3 . | . . . Level 4 . | . . . Level 5 . | . . . High Security . | . . . Max Security . | . . . Peak Influence 40 | 5 40 . Initial . | . . . Average 9 | 1 13 . Influence Increases 105 | 10 75 20 Destroy 0b10 Robot/C 60 | . 40 20 Destroy 0b10 Robot/NC 20 | 10 10 . Destroy Leader 12 | . 12 . Successful Hack 13 | . 13 . Influence Decreases 97 | 10 65 22 Entered New Map 6 | . . 6 Time Decay 81 | 10 65 6 Lost Part 10 | . . 10 Squads Dispatched 1 | . 1 . Investigation 1 | . 1 . Extermination . | . . . Reinforcement . | . . . Assault . | . . . Garrison . | . . . Intercept . | . . . Searches Triggered . | . . . Construction Impeded . | . . . Haulers Reinforced . | . . . Active Scanning Responses . | . . . Cargo Convoy Interrupts . | . . . Stealth | -11 -10 -10 --------- Run | Yrd Mat Sub Distress Signals . | . . . Communications Jammed . | . . . Distress Signals . | . . . Times Spotted 21 | . 5 16 Peak Tracking Total 3 | . 3 2 Tactical Retreats 3 | . . 3 Traps | -11 -10 -10 ------- Run | Yrd Mat Sub Traps Triggered 4 | . 1 3 Indirectly . | . . . Trap Hack Attempts . | . . . Triggered . | . . . Disarmed . | . . . Reprogrammed . | . . . Reused . | . . . Traps Extracted . | . . . Installed 3 | . . 3 Triggered . | . . . Most Traps Carried 2 | . . 2 Machines | -11 -10 -10 ---------- Run | Yrd Mat Sub Machines Disabled . | . . . Max in Single Turn . | . . . Machines Repaired . | . . . Machines Dismantled . | . . . Machines Sabotaged . | . . . Overloaded Fab Kills . | . . . Hacking | -11 -10 -10 --------- Run | Yrd Mat Sub Machines Accessed 2 | . 2 . Terminals 2 | . 2 . Fabricators . | . . . Repair Stations . | . . . Recycling Units . | . . . Scanalyzers . | . . . Garrison Access . | . . . Total Hacks 6 | . 6 . Successful 3 | . 3 . Failed 3 | . 3 . Catastrophic . | . . . Database Lockouts . | . . . Manual 6 | . 6 . Terminals 6 | . 6 . Fabricators . | . . . Repair Stations . | . . . Recycling Units . | . . . Scanalyzers . | . . . Garrison Access . | . . . Terminal Hacks 3 | . 3 . Part Schematic 1 | . 1 . Robot Schematic 1 | . 1 . Robot Analysis 1 | . 1 . Fabricator Hacks . | . . . Repair Station Hacks . | . . . Recycling Unit Hacks . | . . . Scanalyzer . | . . . Garrison Access Hacks . | . . . Unauthorized Hacks . | . . . Terminals . | . . . Fabricators . | . . . Repair Stations . | . . . Recycling Units . | . . . Scanalyzers . | . . . Garrison Access . | . . . Data Cores Recovered . | . . . Used . | . . . Hacking Detections 2 | . 2 . Full Trace Events . | . . . Feedback Events . | . . . Feedback Blocked . | . . . Robot Schematics Acquired 1 | . 1 . Robots Built . | . . . Authchips . | . . . Time . | . . . Total Robot Build Rating . | . . . Part Schematics Acquired 1 | . 1 . Parts Built . | . . . Authchips . | . . . Time . | . . . Total Part Build Rating . | . . . Part Studies Acquired . | . . . Parts Repaired . | . . . Time . | . . . Parts Recycled . | . . . Recycled Matter . | . . . Retrieved Matter . | . . . Retrieved Components . | . . . Parts Scanalyzed . | . . . Part Schematics Acquired . | . . . Parts Damaged . | . . . Bothacking | -11 -10 -10 ------------ Run | Yrd Mat Sub Used RIF Installer . | . . . Robots Hacked . | . . . Non-combat . | . . . Combat . | . . . Robot Hacks Applied . | . . . Relay Couplers Released . | . . . Fabnet Peak Effective % . | . . . Robots Rewired . | . . . Allies Hacked . | . . . Hacks Repelled . | . . . Allies | -11 -10 -10 -------- Run | Yrd Mat Sub Total Allies . | . . . Largest Group . | . . . Highest-Rated Group . | . . . Highest-Rated Ally . | . . . Total Orders . | . . . Ally Attacks . | . . . Total Damage . | . . . Kills . | . . . Allies Corrupted . | . . . Allies Melted . | . . . Intel | -11 -10 -10 ------- Run | Yrd Mat Sub Active Infowar (turns) 865 | 11 161 693 Terrain 865 | 11 161 693 Robot Analysis Total 1 | . 1 . Derelict Logs Recovered 1 | . . 1 Drone Launches . | . . . Drone Recoveries . | . . . Exploration | -11 -10 -10 ------------- Run | Yrd Mat Sub Turns Passed 3468 | 82 161 3225 Spaces Moved 1962 | 64 127 1771 Core 19 | 19 . . Treads 220 | . . 220 Legs . | . . . Wheels 1723 | 45 127 1551 Hover . | . . . Flight . | . . . Fastest Speed 50 | 50 100 110 Average Speed 134 | 91 101 138 Slowest Speed 250 | 250 115 240 Overloaded Moves . | . . . Propulsion Burnouts . | . . . Robots Hopped . | . . . Potential Cave-ins . | . . . Cave-ins Triggered . | . . . Exploration Rate (%) 37 | 4 31 78 Regions Visited 2 Branch Regions 1 Pre-discovered Areas . | . . . Known Exits Taken . | . . . Unknown Exits Taken 2 | 1 1 . Scrap Searched 9 | . . 9 Spaces Dug 2 | . . 2 Terrain Destroyed 8 | . . 8 Melee . | . . . Projectile 8 | . . 8 AOE . | . . . Terrain Rammed . | . . . Walls Destroyed . | . . . Machines Disabled . | . . . Actions | -11 -10 -10 --------- Run | Yrd Mat Sub Total 2605 | 80 142 2383 Wait 448 | 2 7 439 Move 1960 | 63 126 1771 Hop . | . . . Pick Up 43 | 6 . 37 Fast Attach 8 | 7 . 1 Attach 6 | . . 6 Detach . | . . . Swap 14 | . 1 13 Drop 18 | . . 18 Fire 103 | 2 8 93 Melee . | . . . Ram . | . . . Kick . | . . . Crush . | . . . Escape Stasis . | . . . Rewire . | . . . Trap 3 | . . 3 Miscellaneous 2 | . . 2 Route ------- -11/Scrapyard -10/Materials (discovered 3 exits: [*Mat] / [*Min] / [*Sub]) -10/Subcaves (discovered 3 exits: *Mat x2 / [Rec]) History --------- Turn | Location | Event 3 | -11/Scrapyard | Discovered new exit (range 15) 83 | -11/Scrapyard | Entered Materials 95 | -10/Materials | Discovered new exit (range 16) 158 | -10/Materials | Discovered new exit (range 14) 227 | -10/Materials | Discovered new exit (range 13) 244 | -10/Materials | Entered Subcaves 259 | -10/Subcaves | Identified exit to Materials 281 | -10/Subcaves | Disturbed a concealed Subdweller 306 | -10/Subcaves | Build established: Mutant 352 | -10/Subcaves | Lost 4 parts (1p1n2w) 796 | -10/Subcaves | Discovered new exit (range 5) 827 | -10/Subcaves | A swath of the cavern ceiling suddenly collapsed 941 | -10/Subcaves | Shifting Twisted Machinery released Flamer 1114 | -10/Subcaves | Shifting Twisted Machinery released Battle Cannon 1143 | -10/Subcaves | Discovered exit to Materials (range 5) 1634 | -10/Subcaves | Core integrity fell below 50% 1946 | -10/Subcaves | Build established: Scavenger-Mutant 2518 | -10/Subcaves | Build established: Subdweller-Mutant 2884 | -10/Subcaves | Core integrity fell below 20% 3135 | -10/Subcaves | Shifting Twisted Machinery released Piercing Trap 3135 | -10/Subcaves | Shifting Twisted Machinery released Sub. Optics 3191 | -10/Subcaves | Build established: Mutant 3469 | -10/Subcaves | Destroyed by Piercing Trap Last Messages --------------- 03047_ R1-2E2(u) deconstructs Twisted Machinery. 03062_ Destroyed Multitool. 03093_ Acquired Sub. Power Source. Piercing Trap falls loose from the Twisted Machinery. Sub. Optics falls loose from the Twisted Machinery. 03140_ Installed Piercing Trap. 03205_ Acquired 14 matter. 03207_ Acquired 2 matter. 03425_ Y-45 Defender destroyed. 03436_ Heat Sink fries itself beyond repair. 03439_ Acquired 10 matter. 03440_ Beam Rifle fries itself beyond repair. 03451_ Triggered Piercing Trap. 03451_ Spikes shoot up from the floor. 03451_ Critical hit (Impale). 03469_ Triggered Piercing Trap. 03469_ Spikes shoot up from the floor. 03469_ Critical hit (Impale). 03469_ Sub. Machine Gun destroyed. 03469_ Critical hit (Impale). Map ----- +----------------------------------------------------+ | ????????????????????????????????????????????????# | | ????????????????????????????????????????????????## | | ?????????????????????????????????????????????????? | | ?????????????????????????????????????????????????? | | ?????????????????????????????????????????????????? | | ?????????????????????????????????????????????????? | | ?????????????????????????????????????????????????? | | ?????????????????????????????????????????????????? | | ?????????????????????????????????????????????????? | | ?????????????????????????????????????????????????? | | ?????????????????????????????????????????????????? | | ?????????????????????????????????????????????????? | | ?????????????????????????????????????????????????? | | ?????????????????????????????????????????????????? | | ?????????????????????????????????????????????????? | | ?????????????????????????????????????????????????? | | ?????????????????????????????????????????????????? | | ?????????????????????????????????????????????????? | | ???????????????????????????????####??????????????? | | ?????????????????????????####?## ####???????????? | | ????????????????????????## ### ##??????????? | | ????????????????????????# ^ #??????????? | | ????????????????????????# #??????????? | | ???????????????????????## ## ##??????????? | | ????????????????????#### ##?# ##???????????? | | ????????????????????# @ ###?##????????????? | | ???????????????????# ## ##??????????????? | | ?????????????? $ ### ##?????????????? | | ???????????? ##?# #?????????????? | | ???????????### # # ### ##### #?????????????? | | ?????????????????#???### ##?????????????? | | ????????????????????### ###?????????????? | | ????????????????????# #?????????????? | | ???????????????????# #?????????????? | | ???????????????????## ### % ####??????????? | | ????????????????????# #??# ##?????????? | | ????????????????????## #???# ##????????? | | ?????????????????????##????## ## ###??????? | | ??????????????????????####??## #??????? | | ????????????????????### ##??# ## " #######?? | | ????????????????????# #??## ## " # ##? | | ????????????????????# #????## #? | | ??????????????????### #???#### ## #? | | ???????????????#### ##?## #### ### ##? | | ????????????#### ### ## ### #?? | | ???????????## ## #??## ### | | ???????????# ##??# | | ???????????## #### # | | ????????????### # | | ??????????????## ### | +----------------------------------------------------+ Best States ------------- Heat Dissipation 25 Energy Generation 10 Energy Capacity 250 Matter Stores 300 Matter Capacity 300 Sight Range 16 Terrain Scan Range 16 Terrain Scan Density 10 Armor Coverage 800 Evasion (%) 50 Recoil Reduction 1 Item Schematics ----------------- Huge Storage Unit | -10/Materials | Hacked Robot Schematics ------------------ M-13 Machinist | -10/Materials | Hacked Fabricated ------------ Nothing Repaired ---------- Nothing Studied --------- None Alien Tech Used ----------------- None Achievements -------------- None Challenges ------------ None Game ------ Seed LauncherRegenerativeRigger Manual? 0 Play Time 00:18:42 Cumulative 1147.7 hours Start 2025.12.09 @ 14:48:49 End 2025.12.09 @ 15:05:00 Sessions 1 Manual Loads 0 Difficulty Rogue Special Mode None Game No. 399 Rogue 394 Adventurer 4 Explorer 1 Win Type - Total 24 Types 13/4/1/2/0/1/0/0/2/1 Lore% 97 Gallery% 96 Achievement% 81 Wizard Run 0 Options --------- Layout 0 ASCII 0 Keyboard 0 Movement Numpad Keybinds 0 Fullscreen 2 Font 18/SmallcapsGlow Map View 76x50 Zoom Use 0% Tactical HUD 1 Map Filters NONE Filters NONE Steam 1 RUN: 86b593b9-dfdf-42ed-8f4a-746174fddba4